Cogmind - Beta 12 @@@ ROGUE MODE // 2023.05.05 @ 07:24:11 Player: Mr Goldstein Result: Destroyed by S-27 Virus with Autogun Performance ------------- Evolutions (1) 500 Regions Visited (7) 1400 Robots Destroyed (2) 10 Value Destroyed (60) 60 Prototype IDs (2) 40 Alien Tech Used (0) 0 Bonus (913) 913 TOTAL SCORE: 2923 Bonus ------- Pacifist 200 Follower Combat Kills 135 Met Imprinter 300 Triggered Deep Caves Wall 500 Exposed GOLEM Chamber 500 Friendly Fire -722 Cogmind --------- Core Integrity 0/400 Matter 277/300 Energy 98/100 System Corruption 1% Temperature Cool (0) Movement Core (50) Location -6/Proximity Caves Parts ------- > --- POWER (1) -------- (None) > --- PROPULSION (4) --- (None) > --- UTILITY (2) ------ Improved Sensor Array > --- WEAPON (2) ------- Makeshift Sword (fused) > --- INVENTORY (5) ---- GOLEM Unit GOLEM Unit Peak State ------------ > --- POWER ------------ (None) > --- PROPULSION ------- Armored Treads Armored Treads Carbon-fiber Leg Carbon-fiber Leg > --- UTILITY ---------- Surveybot 24 Scanner Surveybot 24 Chip > --- WEAPON ----------- Makeshift Sword > --- INVENTORY -------- Xenon Bombardment Thruster Improved Sensor Array Rocket Launcher Makeshift Sword [Rating: 33] Favorites ----------- Power F-cell Engine Engine F-cell Engine Propulsion Carbon-fiber Leg Treads Light Treads Leg Carbon-fiber Leg Utility Improved Sensor Array Device Improved Sensor Array Processor Surveybot 24 Chip Hackware Makeshift Hacking Suite Protection Makeshift Kinetic Plating Weapon Makeshift Sword Energy Gun Heavy Particle Gun Launcher Rocket Launcher Slashing Weapon Makeshift Sword Build | -11 -10 -10 -9 -9 -7 -7 -6 ------- Run | Jun Mat Min Mat Min Zio Dee Pro Slots Evolved 2 | . . . 2 . . . . Power . | . . . . . . . . Propulsion 2 | . . . 2 . . . . Utility . | . . . . . . . . Weapon . | . . . . . . . . Parts Attached 20 | 2 . . 3 . 10 5 . Power 1 | . . . . . 1 . . Engine 1 | . . . . . 1 . . Core . | . . . . . . . . Reactor . | . . . . . . . . Propulsion 8 | 2 . . 2 . 4 . . Treads 4 | 2 . . . . 2 . . Leg 4 | . . . 2 . 2 . . Wheel . | . . . . . . . . Hover . | . . . . . . . . Flight . | . . . . . . . . Utility 7 | . . . . . 3 4 . Device 4 | . . . . . 1 3 . Storage . | . . . . . . . . Processor 1 | . . . . . . 1 . Hackware 1 | . . . . . 1 . . Protection 1 | . . . . . 1 . . Artifact . | . . . . . . . . Weapon 4 | . . . 1 . 2 1 . Energy Gun 1 | . . . 1 . . . . Energy Cannon . | . . . . . . . . Ballistic Gun . | . . . . . . . . Ballistic Cannon . | . . . . . . . . Launcher 1 | . . . . . . 1 . Special Weapon . | . . . . . . . . Impact Weapon . | . . . . . . . . Slashing Weapon 2 | . . . . . 2 . . Piercing Weapon . | . . . . . . . . Special Melee Weapon . | . . . . . . . . Unidentified Prototypes 2 | . . . 1 . 1 . . Parts Lost 4 | . . . . . . 3 1 Power . | . . . . . . . . Propulsion 4 | . . . . . . 3 1 Utility . | . . . . . . . . Weapon . | . . . . . . . . Highest Loss Streak 3 | . . . . . . 3 1 To Critical Strikes . | . . . . . . . . Average Slot Usage (%) 55 | . 28 28 29 44 59 66 33 Treads 18 | . 28 28 22 22 16 20 . Leg 19 | . . . 7 22 27 20 11 Device 8 | . . . . . 10 9 11 Processor 1 | . . . . . . 5 . Slashing Weapon 6 | . . . . . 4 11 11 Naked Turns . | . . . . . . . . Heaviest Build 7 | . . . . . 5 7 3 Greatest Support 3 | 3 3 3 3 3 3 3 3 Greatest Overweight (x) 2 | . . . . . 1 2 . Average Overweight (x) . | . . . . . . . . Largest Inventory Capacity 5 | 5 5 5 5 5 5 5 5 Average Capacity 5 | 5 5 5 5 5 5 5 5 Most Carried 5 | . . 1 4 4 5 5 4 Average Carried 3 | . . . 2 4 4 2 4 Final Capacity 5 | 5 5 5 5 5 5 5 5 Final Carried 4 | . . 1 4 4 4 4 4 Class Distribution -------------------- 100% | Mutant Dominant Class ---------------- Mutant | -10/Materials Mutant | -10/Mines Mutant | -9/Materials Mutant | -9/Mines Mutant | -7/Zion Mutant | -7/Deep Caves Mutant | -6/Proximity Caves Resources | -11 -10 -10 -9 -9 -7 -7 -6 ----------- Run | Jun Mat Min Mat Min Zio Dee Pro Matter Collected 367 | 193 . 26 . . 120 28 . Remotely . | . . . . . . . . Salvage Created 137 | . . . . . 98 39 . Parts 12 | . . . . . 12 . . Haulers Intercepted . | . . . . . . . . Recyclers Shooed . | . . . . . . . . Parts Field Recycled . | . . . . . . . . Retrieved Matter . | . . . . . . . . Parts Self-Destructed . | . . . . . . . . Prevented . | . . . . . . . . Kills | -11 -10 -10 -9 -9 -7 -7 -6 ------- Run | Jun Mat Min Mat Min Zio Dee Pro Combat Hostiles Destroyed 4 | . . . . . 1 3 . Melee 2 | . . . . . 1 1 . AOE 2 | . . . . . . 2 . Classes Destroyed 2 | . . . . . 1 1 . Assembled 3 | . . . . . . 3 . Mutant 1 | . . . . . 1 . . Best Kill Streak 3 | . . . . . 1 3 . Combat Bots Only 3 | . . . . . 1 3 . Max Kills in Single Turn 2 | . . . . . 1 2 . Gunslinging . | . . . . . . . . Exploded 2 | . . . . . . 2 . Melee 1 | . . . . . 1 1 . Uniques/NPCs Destroyed 1 | . . . . . 1 . . Imprinter (-7/Zion) Combat | -11 -10 -10 -9 -9 -7 -7 -6 -------- Run | Jun Mat Min Mat Min Zio Dee Pro Damage Taken 1511 | . . 165 117 . 195 825 209 Core 433 | . . 32 44 . 28 205 124 Absorbed by Shields . | . . . . . . . . Core Remaining (%) 93 | 100 . 87 . . . . . Volleys Fired 1 | . . . . . . 1 . Largest 1 | . . . . . . 1 . Hottest 33 | . . . . . . 33 . Shots Fired 1 | . . . . . . 1 . Gun . | . . . . . . . . Cannon . | . . . . . . . . Launcher 1 | . . . . . . 1 . Special . | . . . . . . . . Kinetic . | . . . . . . . . Thermal . | . . . . . . . . Explosive 1 | . . . . . . 1 . Electromagnetic . | . . . . . . . . Robot Hit Streak . | . . . . . . . . Robot Miss Streak . | . . . . . . . . Penetration Max . | . . . . . . . . Secondary Targets . | . . . . . . . . Shots Hit Robots 5 | . . . . . 3 2 . Core Hits 9 | . . . . . 2 7 . Critical Kills . | . . . . . . . . Critical Parts Destroyed . | . . . . . . . . Critical Strikes . | . . . . . . . . Melee Attacks 24 | . . . . . 11 13 . Impact . | . . . . . . . . Slashing 24 | . . . . . 11 13 . Piercing . | . . . . . . . . Sneak Attacks 1 | . . . . . 1 . . Combat Hostiles . | . . . . . . . . Follow-up Attacks . | . . . . . . . . Damage Inflicted 413 | . . 10 . . 157 246 . Guns . | . . . . . . . . Cannons . | . . . . . . . . Explosions 121 | . . . . . . 121 . Melee 282 | . . . . . 157 125 . Ramming 10 | . . 10 . . . . . Kinetic . | . . . . . . . . Thermal . | . . . . . . . . Explosive 121 | . . . . . . 121 . Electromagnetic . | . . . . . . . . Impact . | . . . . . . . . Slashing 282 | . . . . . 157 125 . Piercing . | . . . . . . . . Highest Corruption 1 | . . . . . 1 1 1 Average Corruption 1 | . . . . . 1 1 1 Corruption Purged . | . . . . . . . . Corruption Blocked . | . . . . . . . . Effects 5 | . . . . . . 4 1 Message Errors 2 | . . . . . . 2 . Heat Flow Errors 1 | . . . . . . 1 . Parts Fused 1 | . . . . . . 1 . Data Loss (major) 1 | . . . . . . . 1 Overload Shots . | . . . . . . . . Overflow Damage . | . . . . . . . . Projectiles . | . . . . . . . . Explosions . | . . . . . . . . Melee . | . . . . . . . . Knockbacks . | . . . . . . . . Impact . | . . . . . . . . Kinetic . | . . . . . . . . Secondary . | . . . . . . . . Self-Inflicted Damage 4 | . . 4 . . . . . Shots . | . . . . . . . . Rammed 3 | . . 3 . . . . . Targets Rammed 3 | . . 3 . . . . . Kicked . | . . . . . . . . Crushed . | . . . . . . . . Highest Temperature 265 | . . . . . . 265 . Average Temperature 139 | . . . . . . 139 . Received Heat Transfer 266 | . . 90 66 . 32 60 18 Siege Activations . | . . . . . . . . Robots Corrupted . | . . . . . . . . Combat Hostiles . | . . . . . . . . Parts Fried . | . . . . . . . . Impact Corruptions . | . . . . . . . . Robots Melted . | . . . . . . . . Combat Hostiles . | . . . . . . . . Parts Melted . | . . . . . . . . Heat Transferred . | . . . . . . . . Parts Sabotaged . | . . . . . . . . Parts Stolen . | . . . . . . . . Parts Stripped . | . . . . . . . . Power Chain Reactions . | . . . . . . . . Missiles Intercepted . | . . . . . . . . Alert | -11 -10 -10 -9 -9 -7 -7 -6 ------- Run | Jun Mat Min Mat Min Zio Dee Pro Peak Influence 35 | . . 15 35 13 . . . Initial 13 | . . . 5 13 . . . Average 7 | . . 4 23 13 . . . Maximum Alert Level . | . . . . . . . . Low Security (%) 100 | 100 100 100 100 100 . . . Level 1 . | . . . . . . . . Level 2 . | . . . . . . . . Level 3 . | . . . . . . . . Level 4 . | . . . . . . . . Level 5 . | . . . . . . . . High Security . | . . . . . . . . Max Security . | . . . . . . . . Squads Dispatched 2 | . . . 2 . . . . Investigation 1 | . . . 1 . . . . Extermination . | . . . . . . . . Reinforcement 1 | . . . 1 . . . . Assault . | . . . . . . . . Garrison . | . . . . . . . . Intercept . | . . . . . . . . Searches Triggered . | . . . . . . . . Construction Impeded . | . . . . . . . . Haulers Reinforced . | . . . . . . . . Active Scanning Responses . | . . . . . . . . Cargo Convoy Interrupts . | . . . . . . . . Stealth | -11 -10 -10 -9 -9 -7 -7 -6 --------- Run | Jun Mat Min Mat Min Zio Dee Pro Distress Signals . | . . . . . . . . Communications Jammed . | . . . . . . . . Distress Signals . | . . . . . . . . Times Spotted 58 | . . 2 7 . 7 34 8 Peak Tracking Total 38 | . . 2 6 . 4 38 6 Tactical Retreats 3 | . . . . . . 3 . Traps | -11 -10 -10 -9 -9 -7 -7 -6 ------- Run | Jun Mat Min Mat Min Zio Dee Pro Traps Triggered 1 | . . . 1 . . . . Indirectly . | . . . . . . . . Trap Hack Attempts . | . . . . . . . . Triggered . | . . . . . . . . Disarmed . | . . . . . . . . Reprogrammed . | . . . . . . . . Reused . | . . . . . . . . Traps Extracted . | . . . . . . . . Installed . | . . . . . . . . Triggered . | . . . . . . . . Machines | -11 -10 -10 -9 -9 -7 -7 -6 ---------- Run | Jun Mat Min Mat Min Zio Dee Pro Machines Disabled 6 | . . . . . 3 3 . Max in Single Turn 1 | . . . . . . 1 . Machines Repaired . | . . . . . . . . Machines Sabotaged . | . . . . . . . . Overloaded Fab Kills . | . . . . . . . . Hacking | -11 -10 -10 -9 -9 -7 -7 -6 --------- Run | Jun Mat Min Mat Min Zio Dee Pro Machines Accessed 2 | . 1 . 1 . . . . Terminals 2 | . 1 . 1 . . . . Fabricators . | . . . . . . . . Repair Stations . | . . . . . . . . Recycling Units . | . . . . . . . . Scanalyzers . | . . . . . . . . Garrison Access . | . . . . . . . . Total Hacks 6 | . 3 . 3 . . . . Successful . | . . . . . . . . Failed 6 | . 3 . 3 . . . . Catastrophic 1 | . 1 . . . . . . Database Lockouts . | . . . . . . . . Manual 12 | . 3 . 3 . 6 . . Terminals 6 | . 3 . 3 . . . . Fabricators . | . . . . . . . . Repair Stations . | . . . . . . . . Recycling Units . | . . . . . . . . Scanalyzers . | . . . . . . . . Garrison Access . | . . . . . . . . Terminal Hacks . | . . . . . . . . Fabricator Hacks . | . . . . . . . . Repair Station Hacks . | . . . . . . . . Recycling Unit Hacks . | . . . . . . . . Scanalyzer . | . . . . . . . . Garrison Access Hacks . | . . . . . . . . Unauthorized Hacks . | . . . . . . . . Terminals . | . . . . . . . . Fabricators . | . . . . . . . . Repair Stations . | . . . . . . . . Recycling Units . | . . . . . . . . Scanalyzers . | . . . . . . . . Garrison Access . | . . . . . . . . Data Cores Recovered . | . . . . . . . . Used . | . . . . . . . . Hacking Detections 2 | . 1 . 1 . . . . Full Trace Events 1 | . 1 . . . . . . Feedback Events . | . . . . . . . . Feedback Blocked . | . . . . . . . . Robot Schematics Acquired 3 | . . . . . 3 . . Robots Built . | . . . . . . . . Authchips . | . . . . . . . . Time . | . . . . . . . . Total Robot Build Rating . | . . . . . . . . Part Schematics Acquired 15 | . . . . . 15 . . Parts Built . | . . . . . . . . Authchips . | . . . . . . . . Time . | . . . . . . . . Total Part Build Rating . | . . . . . . . . Parts Repaired . | . . . . . . . . Time . | . . . . . . . . Parts Recycled . | . . . . . . . . Recycled Matter . | . . . . . . . . Retrieved Matter . | . . . . . . . . Retrieved Components . | . . . . . . . . Parts Scanalyzed . | . . . . . . . . Part Schematics Acquired . | . . . . . . . . Parts Damaged . | . . . . . . . . Bothacking | -11 -10 -10 -9 -9 -7 -7 -6 ------------ Run | Jun Mat Min Mat Min Zio Dee Pro Used RIF Installer . | . . . . . . . . Robots Hacked . | . . . . . . . . Non-combat . | . . . . . . . . Combat . | . . . . . . . . Robot Hacks Applied . | . . . . . . . . Relay Couplers Released . | . . . . . . . . Fabnet Peak Effective % . | . . . . . . . . Robots Rewired . | . . . . . . . . Allies Hacked . | . . . . . . . . Hacks Repelled . | . . . . . . . . Allies | -11 -10 -10 -9 -9 -7 -7 -6 -------- Run | Jun Mat Min Mat Min Zio Dee Pro Total Allies 2 | . . . . . 2 . . Largest Group 2 | . . . . . 2 . . Highest-Rated Group 192 | . . . . . 192 . . Highest-Rated Ally 96 | . . . . . 96 . . Total Orders . | . . . . . . . . Ally Attacks 23 | . . . . . 23 . . Total Damage 977 | . . . . . 977 . . Kills 8 | . . . . . 8 . . Allies Corrupted . | . . . . . . . . Allies Melted . | . . . . . . . . Intel | -11 -10 -10 -9 -9 -7 -7 -6 ------- Run | Jun Mat Min Mat Min Zio Dee Pro Robot Analysis Total . | . . . . . . . . Derelict Logs Recovered 4 | . . 2 . 1 1 . . Drone Launches . | . . . . . . . . Drone Recoveries . | . . . . . . . . Exploration | -11 -10 -10 -9 -9 -7 -7 -6 ------------- Run | Jun Mat Min Mat Min Zio Dee Pro Turns Passed 1678 | 16 41 170 56 8 668 617 102 Spaces Moved 2490 | 25 82 332 95 15 1104 633 204 Core 2490 | 25 82 332 95 15 1104 633 204 Treads . | . . . . . . . . Legs . | . . . . . . . . Wheels . | . . . . . . . . Hover . | . . . . . . . . Flight . | . . . . . . . . Fastest Speed 50 | 50 50 50 50 50 50 50 50 Average Speed 52 | 50 50 50 50 50 50 61 50 Slowest Speed 150 | 50 50 50 50 50 100 150 50 Overloaded Moves . | . . . . . . . . Propulsion Burnouts . | . . . . . . . . Robots Hopped . | . . . . . . . . Cave-ins Triggered . | . . . . . . . . Exploration Rate (%) 39 | 3 18 75 17 3 87 68 43 Regions Visited 7 Branch Regions 5 Pre-discovered Areas 3 | . . 1 . 1 1 . . Known Exits Taken . | . . . . . . . . Unknown Exits Taken 7 | 1 1 1 1 1 1 1 . Scrap Searched 5 | . . 1 . . 4 . . Spaces Dug . | . . . . . . . . Terrain Destroyed 6 | . . . . . . 6 . Melee . | . . . . . . . . Projectile . | . . . . . . . . AOE 6 | . . . . . . 6 . Terrain Rammed . | . . . . . . . . Walls Destroyed . | . . . . . . . . Machines Disabled . | . . . . . . . . Actions | -11 -10 -10 -9 -9 -7 -7 -6 --------- Run | Jun Mat Min Mat Min Zio Dee Pro Total 2818 | 26 81 335 101 14 1207 850 204 Wait 260 | . . . . . 73 187 . Move 2483 | 24 81 331 94 14 1103 632 204 Hop . | . . . . . . . . Pick Up 9 | . . 1 3 . 2 3 . Fast Attach 13 | 2 . . 3 . 7 1 . Attach 7 | . . . . . 3 4 . Detach 4 | . . . . . 1 3 . Swap . | . . . . . . . . Drop 14 | . . . 1 . 7 6 . Fire 1 | . . . . . . 1 . Melee 24 | . . . . . 11 13 . Ram 3 | . . 3 . . . . . Kick . | . . . . . . . . Crush . | . . . . . . . . Escape Stasis . | . . . . . . . . Rewire . | . . . . . . . . Trap . | . . . . . . . . Miscellaneous . | . . . . . . . . Route ------- -11/Junkyard -10/Materials -10/Mines -9/Materials (discovered 2 exits: [*Min] / [*Sto]) -9/Mines -7/Zion (discovered 2 exits: [*Dee] / [*Pro]) -7/Deep Caves -6/Proximity Caves History --------- Turn | Location | Event 8 | -11/Junkyard | Discovered new exit (range 15) 17 | -11/Junkyard | Entered Materials 51 | -10/Materials | Discovered new exit (range 16) 58 | -10/Materials | Entered Mines 89 | -10/Mines | Learned location of Storage (-9) 120 | -10/Mines | Received a Rocket Launcher from a helpful Derelict 220 | -10/Mines | Discovered new exit (range 8) 226 | -10/Mines | Learned Materials trap positions 228 | -10/Mines | Entered Materials 228 | -9/Materials | Evolved 2 slots: Propulsion x2 229 | -9/Materials | Loaded intel: 10 trap records 263 | -9/Materials | Discovered new exit (range 12) 277 | -9/Materials | Discovered new exit (range 15) 284 | -9/Materials | Entered Mines 285 | -9/Mines | A Derelict revealed a hidden shortcut to a safe place 292 | -9/Mines | Entered Zion 309 | -7/Zion | Build established: Mutant 350 | -7/Zion | Discovered new exit (range 13) 411 | -7/Zion | Learned location of Extension (-4) 442 | -7/Zion | Received a visual enhancement algorithm 584 | -7/Zion | Given A8's code to call for help 818 | -7/Zion | Enhanced Grunt warped into view, answering call for help 820 | -7/Zion | Enhanced Grunt warped into view, answering call for help 889 | -7/Zion | Destroyed Imprinter 890 | -7/Zion | Attacked by Zionites 891 | -7/Zion | Extracted access codes from Imprinter's data core 951 | -7/Zion | Opened final containment barrier to the Deep Caves 959 | -7/Zion | Discovered new exit (range 3) 959 | -7/Zion | Saw the warning signs outside the Deep Caves entrance 960 | -7/Zion | Entered Deep Caves 985 | -7/Deep Caves | Found Surveybot 24 Chip 987 | -7/Deep Caves | Found Surveybot 24 Scanner 1011 | -7/Deep Caves | Z-Facility disabled 1082 | -7/Deep Caves | Discovered new exit (range 17) 1289 | -7/Deep Caves | Spotted as-03001 1504 | -7/Deep Caves | Triggered Deep Caves wall 1505 | -7/Deep Caves | Exposed GOLEM chamber 1507 | -7/Deep Caves | Found GOLEM Unit 1511 | -7/Deep Caves | Found GOLEM Unit 1519 | -7/Deep Caves | Core integrity fell below 50% 1554 | -7/Deep Caves | Lost 3 parts (3n) 1577 | -7/Deep Caves | Entered Proximity Caves 1587 | -6/Proximity Caves | Spotter reported a threat 1587 | -6/Proximity Caves | Spotter reported a threat 1640 | -6/Proximity Caves | Spotter reported a threat 1669 | -6/Proximity Caves | Attracted the attention of an 0b10 checkpoint 1672 | -6/Proximity Caves | Core integrity fell below 20% 1679 | -6/Proximity Caves | Destroyed by S-27 Virus with Autogun Last Messages --------------- 01508_ A GOLEM Unit tumbles out of the Wall Chamber. 01511_ Acquired GOLEM Unit. 01513_ Carbon-fiber Leg destroyed. 01517_ IM-YX5(g) destroyed. 01518_ Arm. Treads destroyed. 01564_ Acquired 11 matter. 01567_ System corrupted: Mak. Sword fused. LOCATION=UNKNOWN GOAL=ESCAPE 01587_ ALERT: Unidentified potential threat approaching Complex 0b10. 01638_ N-01 Spotter is scanning... 01640_ ALERT: Unidentified potential threat approaching Complex 0b10. 01669_ System corrupted: Substantial component data lost. 01669_ Y-54 Guardian: "INTERCEPTING UNREGISTERED DERELICT." 01671_ Penetrated by Slug. 01674_ Slug penetrates Wall. 01674_ Penetrated by Slug. 01674_ Carbon-fiber Leg destroyed. 01678_ Slug penetrates Wall. Map ----- +----------------------------------------------------+ | #??????????????????????????????????????????????? | | #???????????????????????????????????????????????? | | #??###??????????????????????????????????????????? | | # ### ###????????????????????????????????????????? | | ## # ##?? ??????????????????????????????????? | | # #? #??????????????????????????????????? | | ## #?? #??????????????????????????????????? | | ?## ##?? #??????????????????????????????????? | | #### ##### ##?????????????????????????????????? | | ####### #?????????????????????????????????? | | #????# #?????????????????????????????????? | | ##???# #?????????????????????????????????? | | ###?# #??###?????????$#?????????????????? | | ### #??# ##???????? #?????????????????? | | #?## #??????? ##????????????????? | | #?# #??????? ##???????????????? | | ### #??# ##?????# #???????????????? | | #?## ##??# ##???# ##??????????????? | | #??## ###?### #??# ###????????????? | | #??## ###### ### #????????????? | | #??# ? #????????????? | | #??## s #?????????????? | | ##??##### ### #? #??????????????? | | #??????###?# # S#????????????????? | | #????????### ## ######???????????? | | #???????## ## @ ????????? | | #####?????# ????????? | | ## ##????# #???????????? | | #???# ### #???????????? | | #???# ## ##????????????????? | | #???# ### #?????????????????? | | ##???# #?# #### #?????????????????? | | ##???# #?# #??? ##?????????????????? | | # ##???# #?? ## #????#??????????????????? | | # #???# ###??# ### ???????????????????????? | | ## #???####?????## #?? ??????????????????????? | | ?####?????????????# ##??## ?????????????????????? | | ??????????????????# ##???????????????????????????? | | ??????????????????##?????????????????????????????? | | ?????????????????????????????????????????????????? | | ?????????????????????????????????????????????????? | | ?????????????????????????????????????????????????? | | ?????????????????????????????????????????????????? | | ?????????????????????????????????????????????????? | | ?????????????????????????????????????????????????? | | ?????????????????????????????????????????????????? | | ?????????????????????????????????????????????????? | | ?????????????????????????????????????????????????? | | ?????????????????????????????????????????????????? | | ?????????????????????????????????????????????????? | +----------------------------------------------------+ Best States ------------- Heat Dissipation 28 Energy Generation 5 Energy Capacity 500 Matter Stores 300 Matter Capacity 300 Sight Range 16 Robot Scan Range 15 Terrain Scan Range 24 Terrain Scan Density 2010 Evasion (%) 50 Offensive Hacking 11 Item Schematics ----------------- Spk. Medium Treads | -7/Zion | Archive Hvy. Laser | -7/Zion | Archive 0b10 Decoder Chip [Skirmisher] | -7/Zion | Archive Imp. Deuterium Engine | -7/Zion | Archive Gauss Rifle | -7/Zion | Archive Microactuators | -7/Zion | Archive Coil Gun | -7/Zion | Archive Adv. Assault Cannon | -7/Zion | Archive Phase Cannon | -7/Zion | Archive Matter Filter | -7/Zion | Archive Mass Driver | -7/Zion | Archive Mak. Hover Unit | -7/Zion | Archive Antigrav System | -7/Zion | Archive Imp. Carbon-fiber Leg | -7/Zion | Archive Adv. Terrain Scanner | -7/Zion | Archive Robot Schematics ------------------ A-02 Transporter | -7/Zion | Archive K-01 Serf | -7/Zion | Archive L-41 Fighter | -7/Zion | Archive Fabricated ------------ Nothing Alien Tech Used ----------------- None Achievements -------------- None Challenges ------------ None Game ------ Seed ActuatorWardroneMeganuke Manual? 0 Play Time 00:18:43 Cumulative 174.7 hours Start 2023.05.05 @ 07:05:41 End 2023.05.05 @ 07:24:11 Sessions 1 Manual Loads 0 Difficulty Rogue Special Mode None Game No. 518 Rogue 518 Adventurer 0 Explorer 0 Win Type - Total 8 Types 7/0/0/1/0/0/0/0/0 Lore% 71 Gallery% 74 Achievement% 65 Wizard Run 0 Options --------- ASCII 0 Keyboard 0 Movement Mouse Keybinds 0 Fullscreen 1 Font 16/SmallcapsGlow Map View 75x55 Tactical HUD 1 Map Filters NONE Filters NONE Steam 1 RUN: 7d17b5c7-3d62-46f5-87cb-9df199b1c5cd